[Event "NJSK 2023 Jeugd B"]
[Site "Almelo, Netherlands"]
[Date "2023.05.02"]
[Round "3.8"]
[White "Snijders, Take"]
[Black "Veraart, Jan"]
[Result "1-0"]
[TimeControl "90min/40moves + 30min + 30sec/move"]
[WhiteElo "1851"]
[BlackElo "1560"]

1. e4 {[%clk 01:30:58]} {[%emt 00:00:02]} c5 {[%clk 01:30:54]} {[%emt
00:00:07]} 2. Nf3 {[%clk 01:31:25]} {[%emt 00:00:02]} d6 {[%clk 01:31:20]}
{[%emt 00:00:03]} 3. d4 {[%clk 01:31:53]} {[%emt 00:00:04]} cxd4 {[%clk
01:31:47]} {[%emt 00:00:03]} 4. Nxd4 {[%clk 01:32:19]} {[%emt 00:00:04]} Nf6
{[%clk 01:32:13]} {[%emt 00:00:03]} 5. Nc3 {[%clk 01:32:46]} {[%emt 00:00:04]}
a6 {[%clk 01:32:40]} {[%emt 00:00:02]} 6. Bg5 {[%clk 01:33:12]} {[%emt
00:00:04]} e6 {[%clk 01:33:07]} {[%emt 00:00:03]} 7. f4 {[%clk 01:33:36]}
{[%emt 00:00:07]} Nbd7 {[%clk 01:33:21]} {[%emt 00:00:16]} 8. Qf3 {[%clk
01:33:17]} {[%emt 00:00:48]} Qc7 {[%clk 01:33:14]} {[%emt 00:00:37]} 9. O-O-O
{[%clk 01:32:56]} {[%emt 00:00:51]} b5 {[%clk 01:33:34]} {[%emt 00:00:10]} 10.
Bxf6 {[%clk 01:25:15]} {[%emt 00:08:11]} Nxf6 {[%clk 01:33:52]} {[%emt
00:00:12]} 11. e5 {[%clk 01:24:56]} {[%emt 00:00:49]} Bb7 {[%clk 01:33:50]}
{[%emt 00:00:32]} 12. Qg3 {[%clk 01:24:32]} {[%emt 00:00:54]} Ne4 {[%clk
01:27:28]} {[%emt 00:06:52]} 13. Nxe4 {[%clk 01:23:25]} {[%emt 00:01:37]} Bxe4
{[%clk 01:27:48]} {[%emt 00:00:10]} 14. Bd3 {[%clk 01:19:09]} {[%emt 00:04:46]}
Bg6 {[%clk 01:28:06]} {[%emt 00:00:12]} 15. Bxg6 {[%clk 01:07:43]} {[%emt
00:11:55]} hxg6 {[%clk 01:28:27]} {[%emt 00:00:09]} 16. Rhe1 {[%clk 01:01:27]}
{[%emt 00:06:47]} d5 {[%clk 01:27:29]} {[%emt 00:01:29]} 17. h3 {[%clk
00:58:49]} {[%emt 00:03:07]} Rc8 {[%clk 01:25:58]} {[%emt 00:02:01]} 18. Qb3
{[%clk 00:54:47]} {[%emt 00:04:33]} Rh4 {[%clk 01:16:43]} {[%emt 00:09:43]} 19.
g4 {[%clk 00:53:11]} {[%emt 00:02:07]} Qc4 {[%clk 01:14:32]} {[%emt 00:02:40]}
20. Re3 {[%clk 00:49:01]} {[%emt 00:04:41]} Kd7 {[%clk 01:09:45]} {[%emt
00:05:16]} 21. Qxc4 {[%clk 00:45:10]} {[%emt 00:04:21]} bxc4 {[%clk 01:07:49]}
{[%emt 00:02:27]} 22. c3 {[%clk 00:43:37]} {[%emt 00:02:04]} Bc5 {[%clk
01:06:35]} {[%emt 00:01:44]} 23. Rf1 {[%clk 00:42:40]} {[%emt 00:01:26]} Rch8
{[%clk 01:04:29]} {[%emt 00:02:36]} 24. Rff3 {[%clk 00:42:15]} {[%emt
00:00:55]} R4h7 {[%clk 00:54:08]} {[%emt 00:10:51]} 25. Rg3 {[%clk 00:39:42]}
{[%emt 00:03:04]} f6 {[%clk 00:47:30]} {[%emt 00:07:07]} 26. Ref3 {[%clk
00:39:09]} {[%emt 00:01:03]} f5 {[%clk 00:28:47]} {[%emt 00:19:13]} 27. gxf5
{[%clk 00:37:07]} {[%emt 00:02:32]} gxf5 {[%clk 00:29:05]} {[%emt 00:00:12]} 28.
Kd2 {[%clk 00:32:29]} {[%emt 00:05:09]} Rb8 {[%clk 00:22:01]} {[%emt 00:07:32]}
29. Kc2 {[%clk 00:31:37]} {[%emt 00:01:22]} Be7 {[%clk 00:21:10]} {[%emt
00:01:21]} 30. Rg6 {[%clk 00:31:32]} {[%emt 00:00:37]} Rb6 {[%clk 00:20:21]}
{[%emt 00:01:17]} 31. Nxf5 {[%clk 00:31:15]} {[%emt 00:00:47]} Bf6 {[%clk
00:06:01]} {[%emt 00:14:50]} 32. Nd4 {[%clk 00:25:57]} {[%emt 00:05:49]} Be7
{[%clk 00:05:21]} {[%emt 00:01:10]} 33. f5 {[%clk 00:25:08]} {[%emt 00:01:19]}
Rh6 {[%clk 00:00:32]} {[%emt 00:05:19]} 34. Rxg7 {[%clk 00:23:50]} {[%emt
00:01:52]} exf5 {[%clk 00:00:53]} {[%emt 00:00:05]} 35. e6+ {[%clk 00:23:59]}
{[%emt 00:00:22]} Rbxe6 {[%clk 00:00:34]} {[%emt 00:00:48]} 36. Nxe6 {[%clk
00:24:13]} {[%emt 00:00:16]} Kxe6 {[%clk 00:01:02]} {[%emt 00:00:02]} 37. Re3+
{[%emt 00:00:38]} 1-0

[Event "NJSK 2023 Jeugd B"]
[Site "Almelo, Netherlands"]
[Date "2023.05.03"]
[Round "4.1"]
[White "Van Foreest, Nanne"]
[Black "Van Arendonk, Polle"]
[Result "1-0"]
[TimeControl "90min/40moves + 30min + 30sec/move"]
[WhiteElo "1893"]
[BlackElo "1772"]

1. e4 {[%clk 01:30:52]} {[%emt 00:00:02]} e5 {[%clk 01:31:00]} 2. Nf3 {[%clk
01:31:16]} {[%emt 00:00:11]} Nf6 {[%clk 01:31:26]} {[%emt 00:00:04]} 3. Nxe5
{[%clk 01:31:40]} {[%emt 00:00:07]} d6 {[%clk 01:31:52]} {[%emt 00:00:04]} 4.
Nf3 {[%clk 01:32:03]} {[%emt 00:00:06]} Nxe4 {[%clk 01:32:17]} {[%emt
00:00:05]} 5. d4 {[%clk 01:32:16]} {[%emt 00:00:18]} d5 {[%clk 01:32:44]}
{[%emt 00:00:04]} 6. Bd3 {[%clk 01:32:40]} {[%emt 00:00:05]} Bd6 {[%clk
01:33:10]} {[%emt 00:00:05]} 7. O-O {[%clk 01:32:27]} {[%emt 00:00:42]} O-O
{[%clk 01:33:37]} {[%emt 00:00:03]} 8. Re1 {[%clk 01:32:45]} {[%emt 00:00:12]}
Bf5 {[%clk 01:34:01]} {[%emt 00:00:06]} 9. c4 {[%clk 01:30:50]} {[%emt
00:02:25]} c6 {[%clk 01:34:12]} {[%emt 00:00:20]} 10. Nc3 {[%clk 01:29:12]}
{[%emt 00:02:08]} Nxc3 {[%clk 01:28:53]} {[%emt 00:05:48]} 11. bxc3 {[%clk
01:29:12]} {[%emt 00:00:31]} Bg6 {[%clk 01:29:11]} {[%emt 00:00:12]} 12. Bxg6
{[%clk 01:27:23]} {[%emt 00:02:18]} hxg6 {[%clk 01:25:08]} {[%emt 00:04:34]} 13.
cxd5 {[%clk 01:27:41]} {[%emt 00:00:12]} cxd5 {[%clk 01:25:33]} {[%emt
00:00:04]} 14. Qb3 {[%clk 01:28:04]} {[%emt 00:00:07]} b6 {[%clk 01:24:01]}
{[%emt 00:02:03]} 15. Bg5 {[%clk 01:28:10]} {[%emt 00:00:24]} Qd7 {[%clk
01:14:05]} {[%emt 00:10:26]} 16. Ne5 {[%clk 01:26:15]} {[%emt 00:02:25]} Qb7
{[%clk 01:14:12]} {[%emt 00:00:22]} 17. Bf4 {[%clk 01:24:19]} {[%emt 00:02:26]}
Rd8 {[%clk 01:01:19]} {[%emt 00:13:23]} 18. Re3 {[%clk 01:16:12]} {[%emt
00:08:37]} Nc6 {[%clk 00:55:49]} {[%emt 00:06:01]} 19. Rae1 {[%clk 01:14:57]}
{[%emt 00:01:45]} Bxe5 {[%clk 00:48:14]} {[%emt 00:08:05]} 20. Bxe5 {[%clk
01:14:51]} {[%emt 00:00:35]} Na5 {[%clk 00:46:52]} {[%emt 00:01:53]} 21. Qd1
{[%clk 01:12:49]} {[%emt 00:02:31]} Nc4 {[%clk 00:45:01]} {[%emt 00:02:22]} 22.
Rh3 {[%clk 01:12:37]} {[%emt 00:00:41]} f6 {[%clk 00:39:17]} {[%emt 00:06:15]}
23. Qg4 {[%clk 01:05:43]} {[%emt 00:07:23]} Kf7 {[%clk 00:28:55]} {[%emt
00:10:53]} 24. Bxf6 {[%clk 01:05:23]} {[%emt 00:00:50]} Re8 {[%clk 00:28:37]}
{[%emt 00:00:47]} 25. Be5 {[%clk 01:05:46]} {[%emt 00:00:08]} Qc6 {[%clk
00:27:23]} {[%emt 00:01:44]} 26. Qf4+ {[%clk 01:04:31]} {[%emt 00:01:44]} Qf6
{[%clk 00:26:57]} {[%emt 00:00:57]} 27. Qg4 {[%clk 01:03:11]} {[%emt 00:01:49]}
Nxe5 {[%clk 00:23:06]} {[%emt 00:04:21]} 28. dxe5 {[%clk 01:03:33]} {[%emt
00:00:08]} Rxe5 {[%clk 00:23:32]} {[%emt 00:00:05]} 29. Rxe5 {[%clk 00:54:53]}
{[%emt 00:09:10]} Qxe5 {[%clk 00:23:53]} {[%emt 00:00:09]} 30. Re3 {[%clk
00:55:09]} {[%emt 00:00:14]} Qd6 {[%clk 00:21:59]} {[%emt 00:02:24]} 31. Qa4
{[%clk 00:55:28]} {[%emt 00:00:10]} a5 {[%clk 00:20:14]} {[%emt 00:02:15]} 32.
Qd4 {[%clk 00:53:58]} {[%emt 00:02:00]} Re8 {[%clk 00:13:28]} {[%emt 00:07:17]}
33. Rxe8 {[%clk 00:54:16]} {[%emt 00:00:11]} Kxe8 {[%clk 00:13:57]} {[%emt
00:00:02]} 34. Qxg7 {[%clk 00:54:34]} {[%emt 00:00:11]} Qe6 {[%clk 00:14:25]}
{[%emt 00:00:03]} 35. h3 {[%clk 00:54:32]} {[%emt 00:00:32]} Qe1+ {[%clk
00:11:12]} {[%emt 00:03:42]} 36. Kh2 {[%clk 00:54:20]} {[%emt 00:00:42]} Qxf2
{[%clk 00:10:42]} {[%emt 00:01:00]} 37. Qxg6+ {[%clk 00:54:48]} {[%emt
00:00:02]} Kd7 {[%clk 00:09:38]} {[%emt 00:01:34]} 38. Qg4+ {[%clk 00:54:48]}
{[%emt 00:00:29]} Kc6 {[%clk 00:09:37]} {[%emt 00:00:32]} 39. h4 {[%clk
00:54:47]} {[%emt 00:00:31]} Qxa2 {[%clk 00:02:58]} {[%emt 00:07:09]} 40. h5
{[%clk 00:54:46]} {[%emt 00:00:31]} Qc2 {[%clk 00:00:59]} {[%emt 00:02:29]} 41.
Qg6+ {[%clk 00:55:03]} {[%emt 00:00:13]} 1-0

[Event "NJSK 2023 Jeugd B"]
[Site "Almelo, Netherlands"]
[Date "2023.05.03"]
[Round "4.2"]
[White "Van Egmond, Tom"]
[Black "Kumar, Prajit Sai"]
[Result "1/2-1/2"]
[TimeControl "90min/40moves + 30min + 30sec/move"]
[WhiteElo "1767"]
[BlackElo "2228"]

1. d4 {[%clk 01:30:58]} {[%emt 00:00:02]} d5 {[%clk 01:30:55]} {[%emt
00:00:05]} 2. c4 {[%clk 01:31:24]} {[%emt 00:00:03]} e6 {[%clk 01:31:22]}
{[%emt 00:00:05]} 3. Nc3 {[%clk 01:31:48]} {[%emt 00:00:05]} h6 {[%clk
01:31:18]} {[%emt 00:00:33]} 4. g3 {[%clk 01:30:37]} {[%emt 00:01:42]} Nf6
{[%clk 01:31:14]} {[%emt 00:00:33]} 5. Bg2 {[%clk 01:30:58]} {[%emt 00:00:10]}
Nc6 {[%clk 01:31:15]} {[%emt 00:00:28]} 6. Nf3 {[%clk 01:30:22]} {[%emt
00:01:05]} Bd6 {[%clk 01:31:37]} {[%emt 00:00:08]} 7. b3 {[%clk 01:27:17]}
{[%emt 00:03:37]} O-O {[%clk 01:31:16]} {[%emt 00:00:50]} 8. O-O {[%clk
01:27:36]} {[%emt 00:00:11]} Re8 {[%clk 01:27:50]} {[%emt 00:03:56]} 9. Qc2
{[%clk 01:22:07]} {[%emt 00:06:00]} dxc4 {[%clk 01:26:18]} {[%emt 00:02:01]} 10.
bxc4 {[%clk 01:21:42]} {[%emt 00:00:55]} e5 {[%clk 01:26:32]} {[%emt 00:00:15]}
11. dxe5 {[%clk 01:14:08]} {[%emt 00:08:06]} Nxe5 {[%clk 01:26:55]} {[%emt
00:00:06]} 12. Nb5 {[%clk 01:06:39]} {[%emt 00:07:59]} Qe7 {[%clk 01:10:09]}
{[%emt 00:17:15]} 13. Nxd6 {[%clk 01:02:43]} {[%emt 00:04:27]} cxd6 {[%clk
01:08:31]} {[%emt 00:02:07]} 14. Ba3 {[%clk 00:55:30]} {[%emt 00:07:44]} Nxf3+
{[%clk 01:07:32]} {[%emt 00:01:30]} 15. Bxf3 {[%clk 00:54:41]} {[%emt
00:01:19]} Bg4 {[%clk 01:05:50]} {[%emt 00:02:11]} 16. Rad1 {[%clk 00:45:42]}
{[%emt 00:09:29]} Red8 {[%clk 00:57:17]} {[%emt 00:09:03]} 17. Qd3 {[%clk
00:38:57]} {[%emt 00:07:16]} Bxf3 {[%clk 00:53:00]} {[%emt 00:04:46]} 18. exf3
{[%clk 00:37:43]} {[%emt 00:01:44]} Ne8 {[%clk 00:52:51]} {[%emt 00:00:38]} 19.
Rfe1 {[%clk 00:36:50]} {[%emt 00:01:24]} Qg5 {[%clk 00:40:45]} {[%emt
00:12:35]} 20. Re4 {[%clk 00:30:49]} {[%emt 00:06:32]} Qg6 {[%clk 00:32:47]}
{[%emt 00:08:27]} 21. Qd2 {[%clk 00:19:23]} {[%emt 00:11:57]} h5 {[%clk
00:25:46]} {[%emt 00:07:31]} 22. Rd4 {[%clk 00:17:12]} {[%emt 00:02:41]} b6
{[%clk 00:23:05]} {[%emt 00:03:11]} 23. c5 {[%clk 00:10:46]} {[%emt 00:06:56]}
bxc5 {[%clk 00:22:51]} {[%emt 00:00:44]} 24. Bxc5 {[%clk 00:11:09]} {[%emt
00:00:07]} Qf5 {[%clk 00:21:33]} {[%emt 00:01:47]} 25. Bxd6 {[%clk 00:10:49]}
{[%emt 00:00:51]} 1/2-1/2

[Event "NJSK 2023 Jeugd B"]
[Site "Almelo, Netherlands"]
[Date "2023.05.03"]
[Round "4.3"]
[White "Labruyere, Roger"]
[Black "Niemeijer, Leon"]
[Result "1-0"]
[TimeControl "90min/40moves + 30min + 30sec/move"]
[WhiteElo "2160"]
[BlackElo "1903"]

1. e4 {[%clk 01:30:59]} e6 {[%clk 01:29:51]} {[%emt 00:01:11]} 2. d4 {[%clk
01:31:24]} {[%emt 00:00:04]} d5 {[%clk 01:30:10]} {[%emt 00:00:11]} 3. Nd2
{[%clk 01:31:50]} {[%emt 00:00:04]} c5 {[%clk 01:30:34]} {[%emt 00:00:06]} 4.
Ngf3 {[%clk 01:32:03]} {[%emt 00:00:16]} cxd4 {[%clk 01:30:57]} {[%emt
00:00:08]} 5. exd5 {[%clk 01:32:10]} {[%emt 00:00:22]} Qxd5 {[%clk 01:31:17]}
{[%emt 00:00:10]} 6. Bc4 {[%clk 01:32:36]} {[%emt 00:00:04]} Qd7 {[%clk
01:31:40]} {[%emt 00:00:08]} 7. Nb3 {[%clk 01:32:31]} {[%emt 00:00:35]} Nc6
{[%clk 01:31:12]} {[%emt 00:00:59]} 8. Nbxd4 {[%clk 01:32:22]} {[%emt
00:00:38]} Nxd4 {[%clk 01:31:28]} {[%emt 00:00:14]} 9. Nxd4 {[%clk 01:31:41]}
{[%emt 00:01:10]} a6 {[%clk 01:30:45]} {[%emt 00:01:14]} 10. O-O {[%clk
01:30:29]} {[%emt 00:01:41]} Bd6 {[%clk 01:30:42]} {[%emt 00:00:34]} 11. Bb3
{[%clk 01:13:57]} {[%emt 00:17:01]} Qc7 {[%clk 01:27:22]} {[%emt 00:03:50]} 12.
h4 {[%clk 01:09:09]} {[%emt 00:05:18]} b5 {[%clk 01:16:44]} {[%emt 00:11:09]}
13. c3 {[%clk 01:02:30]} {[%emt 00:07:09]} Nf6 {[%clk 01:11:39]} {[%emt
00:05:35]} 14. Bg5 {[%clk 00:59:17]} {[%emt 00:03:43]} Ne4 {[%clk 01:08:11]}
{[%emt 00:03:57]} 15. Qe2 {[%clk 00:57:12]} {[%emt 00:02:35]} Nxg5 {[%clk
00:53:56]} {[%emt 00:14:45]} 16. hxg5 {[%clk 00:57:22]} {[%emt 00:00:20]} O-O
{[%clk 00:54:23]} {[%emt 00:00:04]} 17. Rfd1 {[%clk 00:54:39]} {[%emt
00:03:13]} Bf4 {[%clk 00:40:20]} {[%emt 00:14:33]} 18. Bc2 {[%clk 00:41:54]}
{[%emt 00:13:14]} g6 {[%clk 00:30:32]} {[%emt 00:10:18]} 19. Nf3 {[%clk
00:33:52]} {[%emt 00:08:32]} Bb7 {[%clk 00:22:59]} {[%emt 00:08:04]} 20. Be4
{[%clk 00:34:04]} {[%emt 00:00:17]} Bxe4 {[%clk 00:20:46]} {[%emt 00:02:44]} 21.
Qxe4 {[%clk 00:34:29]} {[%emt 00:00:05]} Rfd8 {[%clk 00:19:25]} {[%emt
00:01:51]} 22. a4 {[%clk 00:30:47]} {[%emt 00:04:11]} Rab8 {[%clk 00:14:41]}
{[%emt 00:05:15]} 23. axb5 {[%clk 00:30:14]} {[%emt 00:01:03]} Rxd1+ {[%clk
00:11:48]} {[%emt 00:03:23]} 24. Rxd1 {[%clk 00:30:32]} {[%emt 00:00:11]} Rxb5
{[%clk 00:12:14]} {[%emt 00:00:05]} 25. b4 {[%clk 00:23:34]} {[%emt 00:07:28]}
Bxg5 {[%clk 00:06:16]} {[%emt 00:06:27]} 26. c4 {[%clk 00:22:39]} {[%emt
00:01:26]} Rf5 {[%clk 00:05:28]} {[%emt 00:01:18]} 27. Nxg5 {[%clk 00:21:29]}
{[%emt 00:01:39]} Rxg5 {[%clk 00:05:51]} {[%emt 00:00:07]} 28. Qa8+ {[%clk
00:19:21]} {[%emt 00:02:38]} Kg7 {[%clk 00:06:20]} {[%emt 00:00:02]} 29. Qxa6
{[%clk 00:19:41]} {[%emt 00:00:10]} Rg4 {[%clk 00:05:34]} {[%emt 00:01:15]} 30.
Qa1+ {[%clk 00:16:32]} {[%emt 00:03:40]} e5 {[%clk 00:03:34]} {[%emt 00:02:30]}
31. Rc1 {[%clk 00:14:12]} {[%emt 00:02:49]} f6 {[%clk 00:00:53]} {[%emt
00:03:12]} 32. Qc3 {[%clk 00:12:21]} {[%emt 00:02:21]} Qc6 {[%clk 00:00:55]}
{[%emt 00:00:28]} 33. g3 {[%clk 00:12:43]} {[%emt 00:00:07]} h5 {[%clk
00:00:55]} {[%emt 00:00:30]} 34. b5 {[%clk 00:12:28]} {[%emt 00:00:45]} Qc5
{[%clk 00:00:52]} {[%emt 00:00:33]} 35. Qe3 {[%clk 00:07:02]} {[%emt 00:05:56]}
Qxe3 {[%clk 00:00:38]} {[%emt 00:00:45]} 36. fxe3 {[%clk 00:07:31]} Rxg3+
{[%clk 00:01:02]} {[%emt 00:00:07]} 37. Kf2 {[%clk 00:07:58]} {[%emt 00:00:03]}
Rh3 {[%clk 00:01:18]} {[%emt 00:00:14]} 38. c5 {[%clk 00:08:07]} {[%emt
00:00:20]} h4 {[%clk 00:00:48]} {[%emt 00:01:01]} 39. c6 {[%clk 00:08:32]}
{[%emt 00:00:05]} Rh2+ {[%clk 00:00:45]} {[%emt 00:00:32]} 40. Kg1 {[%clk
00:08:56]} {[%emt 00:00:05]} Ra2 {[%clk 00:00:37]} {[%emt 00:00:39]} 41. c7
{[%clk 00:09:21]} {[%emt 00:00:04]} Ra8 {[%clk 00:00:35]} {[%emt 00:00:33]} 42.
c8=Q {[%clk 00:09:46]} {[%emt 00:00:06]} Rxc8 {[%clk 00:00:36]} {[%emt
00:00:28]} 43. Rxc8 {[%clk 00:10:12]} {[%emt 00:00:04]} 1-0

[Event "NJSK 2023 Jeugd B"]
[Site "Almelo, Netherlands"]
[Date "2023.05.03"]
[Round "4.4"]
[White "Van Hesselingen, Guido"]
[Black "Smeets, Kobe"]
[Result "0-1"]
[TimeControl "90min/40moves + 30min + 30sec/move"]
[WhiteElo "1924"]
[BlackElo "2094"]

1. e4 {[%clk 01:30:57]} {[%emt 00:00:01]} c5 {[%clk 01:30:56]} {[%emt
00:00:05]} 2. Nf3 {[%clk 01:31:21]} {[%emt 00:00:05]} e6 {[%clk 01:31:23]}
{[%emt 00:00:04]} 3. c3 {[%clk 01:31:45]} {[%emt 00:00:06]} Nf6 {[%clk
01:31:50]} {[%emt 00:00:03]} 4. e5 {[%clk 01:32:09]} {[%emt 00:00:05]} Nd5
{[%clk 01:32:18]} {[%emt 00:00:03]} 5. d4 {[%clk 01:32:27]} {[%emt 00:00:11]}
cxd4 {[%clk 01:32:44]} {[%emt 00:00:05]} 6. cxd4 {[%clk 01:32:53]} {[%emt
00:00:04]} d6 {[%clk 01:33:08]} {[%emt 00:00:06]} 7. a3 {[%clk 01:33:14]}
{[%emt 00:00:09]} Bd7 {[%clk 01:33:32]} {[%emt 00:00:07]} 8. Bd3 {[%clk
01:33:25]} {[%emt 00:00:17]} Bc6 {[%clk 01:33:58]} {[%emt 00:00:05]} 9. O-O
{[%clk 01:33:14]} {[%emt 00:00:41]} Nd7 {[%clk 01:34:25]} {[%emt 00:00:04]} 10.
Re1 {[%clk 01:30:38]} {[%emt 00:03:05]} Be7 {[%clk 01:34:46]} {[%emt 00:00:09]}
11. Nbd2 {[%clk 01:28:35]} {[%emt 00:02:33]} dxe5 {[%clk 01:35:07]} {[%emt
00:00:08]} 12. dxe5 {[%clk 01:28:56]} {[%emt 00:00:10]} Nc5 {[%clk 01:35:29]}
{[%emt 00:00:08]} 13. Bc2 {[%clk 01:27:21]} {[%emt 00:02:05]} Nf4 {[%clk
01:35:43]} {[%emt 00:00:15]} 14. Nc4 {[%clk 01:16:15]} {[%emt 00:11:36]} Qxd1
{[%clk 01:23:49]} {[%emt 00:12:24]} 15. Rxd1 {[%clk 01:15:31]} {[%emt
00:01:14]} Ne2+ {[%clk 01:24:11]} {[%emt 00:00:08]} 16. Kh1 {[%clk 01:11:02]}
{[%emt 00:04:59]} Nxc1 {[%clk 01:24:34]} {[%emt 00:00:08]} 17. Raxc1 {[%clk
01:11:26]} {[%emt 00:00:06]} Rd8 {[%clk 01:09:01]} {[%emt 00:16:02]} 18. Rd4
{[%clk 00:31:03]} {[%emt 00:40:53]} O-O {[%clk 00:57:36]} {[%emt 00:11:56]} 19.
Rcd1 {[%clk 00:29:15]} {[%emt 00:02:17]} b5 {[%clk 00:38:01]} {[%emt 00:20:06]}
20. Nd6 {[%clk 00:24:19]} {[%emt 00:05:26]} Bxd6 {[%clk 00:17:01]} {[%emt
00:21:30]} 21. Rxd6 {[%clk 00:18:57]} {[%emt 00:05:51]} Bd5 {[%clk 00:17:16]}
{[%emt 00:00:16]} 22. Rxd8 {[%clk 00:18:19]} {[%emt 00:01:08]} Rxd8 {[%clk
00:17:44]} {[%emt 00:00:01]} 23. b4 {[%clk 00:17:34]} {[%emt 00:01:15]} Nd7
{[%clk 00:17:24]} {[%emt 00:00:50]} 24. Nd4 {[%clk 00:09:24]} {[%emt 00:08:41]}
Rc8 {[%clk 00:14:01]} {[%emt 00:03:53]} 25. f4 {[%clk 00:07:29]} {[%emt
00:02:25]} Nb6 {[%clk 00:11:38]} {[%emt 00:02:53]} 26. Bb3 {[%clk 00:06:22]}
{[%emt 00:01:37]} a6 {[%clk 00:12:02]} {[%emt 00:00:06]} 27. f5 {[%clk
00:04:05]} {[%emt 00:02:47]} Nc4 {[%clk 00:11:41]} {[%emt 00:00:52]} 28. fxe6
{[%clk 00:03:59]} {[%emt 00:00:35]} fxe6 {[%clk 00:11:43]} {[%emt 00:00:27]} 29.
Rc1 {[%clk 00:03:44]} {[%emt 00:00:46]} Rf8 {[%clk 00:10:31]} {[%emt 00:01:42]}
30. Kg1 {[%clk 00:03:44]} {[%emt 00:00:30]} Rf4 {[%clk 00:09:57]} {[%emt
00:01:05]} 31. Nf3 {[%clk 00:02:46]} {[%emt 00:01:27]} g5 {[%clk 00:08:41]}
{[%emt 00:01:45]} 32. h3 {[%clk 00:02:11]} {[%emt 00:01:06]} Bxf3 {[%clk
00:01:53]} {[%emt 00:07:18]} 33. gxf3 {[%clk 00:02:26]} {[%emt 00:00:15]} Rxf3
{[%clk 00:02:08]} {[%emt 00:00:15]} 34. Bxc4 {[%clk 00:02:48]} {[%emt
00:00:08]} bxc4 {[%clk 00:02:34]} {[%emt 00:00:03]} 35. Kg2 {[%clk 00:03:07]}
{[%emt 00:00:11]} Rf4 {[%clk 00:02:22]} {[%emt 00:00:42]} 36. a4 {[%clk
00:01:38]} {[%emt 00:02:00]} Re4 {[%clk 00:00:58]} {[%emt 00:01:54]} 37. Kf3
{[%clk 00:01:08]} {[%emt 00:00:59]} Rf4+ {[%clk 00:01:23]} {[%emt 00:00:06]} 38.
Kg3 {[%clk 00:01:22]} {[%emt 00:00:16]} Rd4 {[%clk 00:01:31]} {[%emt 00:00:21]}
39. b5 {[%clk 00:01:20]} {[%emt 00:00:33]} axb5 {[%clk 00:01:40]} {[%emt
00:00:21]} 40. axb5 {[%clk 00:01:45]} {[%emt 00:00:05]} h5 {[%clk 00:01:23]}
{[%emt 00:00:47]} 41. Rc3 {[%clk 00:19:25]} {[%emt 00:12:50]} Rd5 {[%clk
00:20:56]} {[%emt 00:10:56]} 42. b6 {[%clk 00:19:10]} {[%emt 00:00:46]} Rb5
{[%clk 00:20:55]} {[%emt 00:00:31]} 43. Rxc4 {[%clk 00:18:51]} {[%emt
00:00:49]} Rxb6 {[%clk 00:20:56]} {[%emt 00:00:29]} 44. h4 {[%clk 00:07:59]}
{[%emt 00:11:22]} Rb3+ {[%clk 00:21:22]} {[%emt 00:00:04]} 45. Kg2 {[%clk
00:08:15]} {[%emt 00:00:13]} g4 {[%clk 00:21:43]} {[%emt 00:00:09]} 46. Rc8+
{[%clk 00:05:52]} {[%emt 00:02:53]} Kg7 {[%clk 00:20:22]} {[%emt 00:01:51]} 47.
Rc7+ {[%clk 00:06:06]} {[%emt 00:00:17]} Kg6 {[%clk 00:20:42]} {[%emt
00:00:10]} 48. Re7 {[%clk 00:06:28]} {[%emt 00:00:07]} Kf5 {[%clk 00:18:03]}
{[%emt 00:03:09]} 49. Rh7 {[%clk 00:06:52]} {[%emt 00:00:06]} Kf4 {[%clk
00:16:59]} {[%emt 00:01:34]} 50. Rf7+ {[%clk 00:04:01]} {[%emt 00:03:22]} Kxe5
{[%clk 00:17:18]} {[%emt 00:00:11]} 51. Rh7 {[%clk 00:04:26]} {[%emt 00:00:05]}
Kf4 {[%clk 00:17:20]} {[%emt 00:00:28]} 52. Rf7+ {[%clk 00:04:52]} {[%emt
00:00:04]} Ke4 {[%clk 00:17:27]} {[%emt 00:00:22]} 53. Rf6 {[%clk 00:04:05]}
{[%emt 00:01:17]} Ke5 {[%clk 00:01:39]} {[%emt 00:16:18]} 54. Rh6 {[%clk
00:04:29]} {[%emt 00:00:07]} Kf5 {[%clk 00:02:03]} {[%emt 00:00:06]} 55. Rxh5+
{[%clk 00:04:42]} {[%emt 00:00:17]} Kf4 {[%clk 00:02:28]} {[%emt 00:00:04]} 56.
Ra5 {[%clk 00:01:57]} {[%emt 00:03:16]} Rb2+ {[%clk 00:02:52]} {[%emt
00:00:06]} 57. Kf1 {[%clk 00:02:08]} {[%emt 00:00:18]} e5 {[%clk 00:02:24]}
{[%emt 00:00:59]} 58. Ra8 {[%clk 00:00:34]} {[%emt 00:02:04]} Kg3 {[%clk
00:01:36]} {[%emt 00:01:17]} 59. h5 {[%clk 00:00:43]} {[%emt 00:00:21]} Rh2
{[%clk 00:00:47]} {[%emt 00:01:19]} 60. Rh8 {[%clk 00:00:56]} {[%emt 00:00:17]}
e4 {[%clk 00:00:39]} {[%emt 00:00:38]} 61. Re8 {[%clk 00:00:39]} {[%emt
00:00:47]} Rxh5 {[%clk 00:00:48]} {[%emt 00:00:22]} 62. Rxe4 {[%clk 00:01:04]}
{[%emt 00:00:05]} Kf3 {[%clk 00:01:08]} {[%emt 00:00:09]} 0-1